bitfinex/quotes_SOLUSD_20241116
["timestamp","ask_amount","ask_price","bid_price","bid_amount"]
[1731798879890,23.902374,215.58,215.51,29.9247397]
[1731798881187,14.1844397,215.61,215.53,14.1844397]
[1731798881398,4.6382,215.6,215.53,14.1844397]
[1731798881590,23.902374,215.59,215.53,14.1844397]
[1731798882794,42.7253137,215.59,215.51,25.2846397]
[1731798882986,14.1844397,215.57,215.5,16.4855]
[1731798883297,14.1844397,215.55,215.48,4.6406]
[1731798883493,23.776884,215.56,215.49,14.1844397]
[1731798883990,14.1844397,215.57,215.49,14.1844397]
[1731798885200,18.8233397,215.57,215.5,4.6403]
[1731798885397,14.1844397,215.53,215.46,11.2285]
[1731798885598,14.1844397,215.53,215.46,6.5874]
[1731798886101,0.12549,215.56,215.41,18.8266397]
[1731798886102,14.1844397,215.49,215.41,18.8266397]
[1731798886800,9.0951237,215.49,215.41,13.7373237]
[1731798887576,9.0951237,215.48,215.41,13.7373237]
[1731798888281,9.0951237,215.48,215.41,9.0951237]
[1731798888908,14.2118913,215.48,215.41,34.2118913]
[1731798889079,14.2118913,215.47,215.4,76.94921323]
[1731798889282,37.9887753,215.45,215.4,58.09492193]
[1731798889483,14.2118913,215.44,215.4,58.09492193]
[1731798889810,14.2118913,215.43,215.4,58.09492193]
[1731798890396,23.776884,215.42,215.4,58.09492193]
[1731798890703,37.9887753,215.42,215.4,58.09492193]
[1731798890881,23.776884,215.42,215.4,58.09492193]
[1731798891785,14.2118913,215.47,215.4,72.30681323]
[1731798891992,23.776884,215.46,215.4,72.30681323]
[1731798892692,37.9887753,215.48,215.4,72.30681323]
[1731798892899,23.776884,215.46,215.4,14.2118913]
[1731798893086,28.418084,215.46,215.4,14.2118913]
[1731798894101,28.418084,215.46,215.39,14.2118913]
[1731798895507,0.12549,215.45,215.39,14.2118913]
[1731798896291,0.12549,215.45,215.38,30.4620913]
[1731798897017,14.2118913,215.44,215.38,11.6073]
[1731798897999,18.9788813,215.45,215.38,25.8191913]
[1731798898399,23.776884,215.44,215.38,25.8191913]
[1731798899102,28.418584,215.44,215.38,25.8191913]
[1731798899816,0.12549,215.43,215.38,25.8191913]
[1731798900111,0.12549,215.43,215.38,11.6073]
[1731798900818,15.0733,215.49,215.38,11.6073]
[1731798900819,4.6409,215.48,215.39,14.2118913]
[1731798901000,23.902374,215.47,215.41,14.2118913]
[1731798902214,23.902374,215.47,215.35,4.6434]
[1731798902215,14.2118913,215.43,215.35,4.6434]
[1731798902413,4.6412,215.47,215.35,34.2118913]
[1731798902414,38.1142653,215.42,215.35,34.2118913]
[1731798902607,0.12549,215.39,215.34,18.0745]
[1731798903219,14.2118913,215.42,215.35,14.2118913]
[1731798903428,23.776884,215.42,215.36,14.2118913]
[1731798903720,0.12549,215.41,215.37,14.2118913]
[1731798903944,23.776884,215.44,215.38,14.2118913]
[1731798904226,18.9792813,215.43,215.36,14.2118913]
[1731798904405,18.9792813,215.43,215.34,32.2863913]
[1731798904406,14.2118913,215.42,215.34,32.2863913]
[1731798904600,0.12549,215.4,215.34,18.0745]
[1731798904816,0.12549,215.4,215.35,14.2118913]
[1731798905127,23.776884,215.42,215.35,14.2118913]
[1731798905517,0.12549,215.41,215.35,14.2118913]
[1731798905725,23.776884,215.4,215.34,36.9301913]
[1731798906030,0.12549,215.39,215.34,36.9301913]
[1731798906408,23.776884,215.42,215.36,14.2118913]
[1731798906725,14.2118913,215.45,215.38,14.2118913]
[1731798907224,14.2118913,215.43,215.35,20.0]
[1731798907409,14.2118913,215.43,215.36,14.2118913]
[1731798908431,14.2118913,215.43,215.37,4.6431]
[1731798909112,0.12549,215.42,215.37,4.6431]
[1731798909433,0.12549,215.42,215.36,14.2118913]
[1731798909603,0.12549,215.42,215.36,18.8551913]
[1731798910003,0.12549,215.42,215.36,14.2118913]
[1731798910323,4.76829,215.39,215.34,18.0745]
[1731798910846,23.776884,215.38,215.34,18.0745]
[1731798911028,4.76829,215.39,215.34,6.4652]
[1731798911232,9.22734924,215.37,215.34,6.4652]
[1731798911538,0.12549,215.35,215.34,6.4652]
[1731798911732,33.00423324,215.35,215.34,6.4652]
[1731798912515,37.64783324,215.35,215.34,6.4652]
[1731798912822,42.77639663,215.35,215.34,6.4652]
[1731798913019,23.776884,215.34,215.26,30.48942263]
[1731798913433,0.12549,215.33,215.26,30.48942263]
[1731798913941,4.76969,215.33,215.26,30.48942263]
[1731798914235,14.23042263,215.37,215.28,14.23042263]
[1731798914410,23.902374,215.36,215.28,14.23042263]
[1731798915875,14.35591263,215.33,215.26,11.6136]
[1731798916162,14.35591263,215.31,215.24,18.87622263]
[1731798916331,23.776884,215.3,215.24,14.23042263]
[1731798916535,0.12549,215.29,215.24,14.23042263]
[1731798917564,0.12549,215.29,215.24,18.87632263]
[1731798917967,0.12549,215.26,215.2,14.23042263]
[1731798918152,0.12549,215.26,215.18,14.23042263]
[1731798918153,23.902374,215.26,215.18,14.23042263]
[1731798918340,23.902374,215.26,215.2,14.23042263]
[1731798918341,0.12549,215.26,215.2,14.23042263]
[1731798919567,0.12549,215.26,215.2,18.87712263]
[1731798920048,23.902374,215.28,215.2,18.87712263]
[1731798920247,0.12549,215.28,215.25,15.0]
[1731798920454,0.12549,215.3,215.25,15.0]
[1731798921039,0.12549,215.27,215.25,15.0]
[1731798921254,4.6448,215.29,215.25,15.0]
[1731798921463,0.12549,215.28,215.25,15.0]
[1731798922040,0.12549,215.31,215.25,15.0]
[1731798922461,23.902374,215.31,215.25,15.0]
[1731798923473,28.546874,215.31,215.25,15.0]
[1731798923966,20.3254,215.43,215.3,14.23042263]
[1731798924166,14.23042263,215.42,215.35,14.23042263]
[1731798924541,14.23042263,215.42,215.34,14.23042263]
[1731798924748,14.23042263,215.41,215.33,14.23042263]
[1731798925160,4.6425,215.4,215.33,14.23042263]
[1731798925948,18.87292263,215.4,215.31,14.23042263]
[1731798926153,14.23042263,215.36,215.29,14.23042263]
[1731798926362,14.23042263,215.36,215.28,40.99342263]
[1731798926577,14.23042263,215.36,215.28,36.34842263]
[1731798926748,23.776884,215.31,215.25,29.23042263]
[1731798926951,0.12549,215.3,215.25,15.0]
[1731798928576,0.12549,215.26,215.25,15.0]
[1731798928872,0.12549,215.27,215.25,15.0]
[1731798929055,0.12549,215.29,215.25,15.0]
[1731798929462,28.547274,215.29,215.25,15.0]
[1731798930353,14.23042263,215.28,215.25,15.0]
[1731798930560,18.87562263,215.28,215.25,15.0]
[1731798930980,0.12549,215.27,215.25,15.0]
[1731798931181,0.12549,215.28,215.25,15.0]
[1731798931780,18.87482263,215.32,215.25,15.0]
[1731798931986,23.902374,215.31,215.25,15.0]
[1731798932179,14.23042263,215.27,215.25,15.0]
[1731798932491,23.902374,215.26,215.25,15.0]
[1731798932778,0.12549,215.28,215.25,15.0]
[1731798932988,0.12549,215.32,215.26,14.23042263]
[1731798933300,14.23042263,215.31,215.25,15.0]
[1731798933460,0.12549,215.3,215.25,15.0]
[1731798933778,4.6443,215.32,215.25,15.0]
[1731798933970,0.12549,215.31,215.25,15.0]
[1731798934565,28.546874,215.31,215.25,15.0]
[1731798934864,23.902374,215.32,215.26,14.23042263]
[1731798936775,28.546674,215.32,215.25,15.0]
[1731798936978,0.12549,215.3,215.25,15.0]
[1731798937355,23.902374,215.3,215.25,15.0]
[1731798937761,23.776884,215.28,215.25,15.0]
[1731798937961,14.23042263,215.29,215.25,15.0]
[1731798938281,23.776884,215.31,215.25,33.87602263]
[1731798938490,0.12549,215.3,215.25,29.23042263]
[1731798938669,4.77029,215.3,215.25,29.23042263]
[1731798938865,0.12549,215.28,215.25,15.0]
[1731798939968,0.12549,215.29,215.25,15.0]
[1731798940285,23.776884,215.31,215.25,15.0]
[1731798940488,0.12549,215.31,215.26,14.23042263]
[1731798941505,15.7021,215.39,215.3,14.23042263]
[1731798941671,15.7021,215.39,215.32,14.23042263]
[1731798941881,14.23042263,215.37,215.3,14.23042263]
[1731798942270,14.23042263,215.35,215.26,6.1486]
[1731798942586,14.23042263,215.31,215.25,15.0]
[1731798942883,4.6446,215.3,215.25,15.0]
[1731798943589,0.12549,215.29,215.25,15.0]
[1731798943786,9.11016219,215.31,215.25,24.11016219]
[1731798943988,9.11016219,215.35,215.27,9.11016219]
[1731798944191,23.902374,215.34,215.27,9.11016219]
[1731798944996,0.12549,215.37,215.31,9.11016219]
[1731798945604,4.6429,215.38,215.31,9.11016219]
[1731798945894,24.81226219,215.44,215.36,9.11016219]
[1731798946073,9.11016219,215.47,215.39,9.11016219]
[1731798946270,15.7021,215.5,215.39,9.11016219]
[1731798946505,9.11016219,215.47,215.39,9.11016219]
[1731798946794,11.179,215.53,215.4,36.2488]
[1731798946984,4.6398,215.53,215.46,14.20811458]
[1731798947981,18.84791458,215.53,215.46,14.20811458]
[1731798948184,18.84791458,215.53,215.45,14.20811458]
[1731798948485,15.7021,215.55,215.4,36.2488]
[1731798948486,4.6394,215.55,215.5,14.20811458]
[1731798948880,14.20811458,215.58,215.46,4.6411]
[1731798948881,14.20811458,215.58,215.51,14.20811458]
[1731798949077,4.6389,215.57,215.51,14.20811458]
[1731798950080,28.541474,215.56,215.51,14.20811458]
[1731798950685,28.415984,215.56,215.51,14.20811458]
[1731798950891,4.6382,215.6,215.53,14.20811458]
[1731798951103,18.84631458,215.6,215.51,14.20811458]
[1731798951305,14.20811458,215.56,215.48,14.20811458]
[1731798951982,28.541674,215.55,215.48,14.20811458]
[1731798952992,28.541674,215.55,215.49,14.20811458]
[1731798953612,29.91021458,215.62,215.54,14.20811458]
[1731798953816,172.492,215.67,215.56,14.20811458]
[1731798953817,14.20811458,215.63,215.56,14.20811458]
[1731798954113,14.20811458,215.62,215.54,14.20811458]
[1731798954410,14.20811458,215.65,215.57,14.20811458]
[1731798954587,18.84501458,215.66,215.58,14.20811458]
[1731798955512,4.6369,215.66,215.61,14.20811458]
[1731798955909,14.20811458,215.68,215.61,14.20811458]
[1731798956083,15.7021,215.73,215.64,14.20811458]
[1731798956084,18.84371458,215.72,215.64,14.20811458]
[1731798956286,18.84371458,215.72,215.65,14.20811458]
[1731798956589,4.6356,215.72,215.65,14.20811458]
[1731798957292,14.20811458,215.71,215.63,14.20811458]
[1731798957487,23.902374,215.7,215.63,14.20811458]
[1731798957798,14.20811458,215.71,215.57,20.0]
[1731798957799,23.902374,215.71,215.64,14.20811458]
[1731798958501,23.902374,215.71,215.66,14.20811458]
[1731798958700,4.6356,215.72,215.66,14.20811458]
[1731798958890,23.776884,215.71,215.66,14.20811458]
[1731798959099,4.6348,215.76,215.69,14.20811458]
[1731798959500,4.6348,215.76,215.63,20.0]
[1731798959813,4.6348,215.76,215.68,14.20811458]
[1731798960116,14.20811458,215.69,215.62,6.1486]
[1731798960316,0.1,215.75,215.59,14.20811458]
[1731798960520,14.20811458,215.69,215.61,14.20811458]
[1731798960710,14.20811458,215.65,215.56,6.1486]
[1731798960894,4.6364,215.68,215.56,6.1486]
[1731798960895,14.20811458,215.63,215.56,20.35671458]
[1731798961098,0.12549,215.6,215.54,14.20811458]
[1731798961399,0.12549,215.62,215.56,14.20811458]
[1731798961603,23.902374,215.62,215.56,14.20811458]
[1731798961903,23.902374,215.62,215.54,14.20811458]
[1731798962103,23.902374,215.62,215.56,14.20811458]
[1731798962311,23.776884,215.62,215.59,14.20811458]
[1731798962503,23.776884,215.62,215.6,14.20811458]
[1731798962903,18.84521458,215.66,215.58,14.20811458]
[1731798963911,0.12549,215.65,215.58,14.20811458]
[1731798964120,28.539574,215.65,215.58,14.20811458]
[1731798964514,28.539574,215.65,215.57,11.5967]
[1731798964819,23.902374,215.66,215.62,14.20811458]
[1731798965128,23.902374,215.66,215.6,14.20811458]
[1731798965628,38.11048858,215.66,215.58,14.20811458]
[1731798965927,0.12549,215.58,215.51,17.7486]
[1731798966108,0.12549,215.58,215.56,14.20811458]
[1731798966823,23.902374,215.62,215.56,14.20811458]
[1731798967030,14.20811458,215.6,215.51,17.7486]
[1731798967320,0.12549,215.58,215.54,14.20811458]
[1731798967616,4.6376,215.63,215.56,14.20811458]
[1731798967834,23.902374,215.62,215.56,14.20811458]
[1731798968023,23.902374,215.62,215.54,14.20811458]
[1731798968024,4.638,215.61,215.54,14.20811458]
[1731798968437,23.776884,215.6,215.54,14.20811458]
[1731798968938,0.12549,215.59,215.52,14.20811458]
[1731798969111,0.12549,215.56,215.51,6.1486]
[1731798969531,0.12549,215.56,215.47,4.6408]
[1731798969708,0.12549,215.56,215.49,14.20811458]
[1731798969907,0.12549,215.56,215.53,14.20811458]
[1731798971132,14.20811458,215.66,215.55,14.20811458]
[1731798971336,14.20811458,215.64,215.51,4.64]
[1731798971520,14.20811458,215.58,215.5,14.20811458]
[1731798971724,14.20811458,215.56,215.48,14.20811458]
[1731798972241,23.902374,215.55,215.48,14.20811458]
[1731798972420,28.541574,215.55,215.48,14.20811458]
[1731798975139,28.541574,215.55,215.5,14.20811458]
[1731798975347,28.541574,215.55,215.48,14.20811458]
[1731798976824,4.6389,215.57,215.5,14.20811458]
[1731798977232,14.20811458,215.56,215.48,14.20811458]
[1731798977927,4.6389,215.57,215.5,14.20811458]
[1731798978245,23.902374,215.56,215.5,14.20811458]
[1731798978433,4.6392,215.55,215.48,14.20811458]
[1731798978634,23.902374,215.54,215.48,14.20811458]
[1731798980242,4.6384,215.59,215.52,14.20811458]
[1731798980447,4.6381,215.61,215.54,14.20811458]
[1731798980658,14.20811458,215.58,215.5,14.20811458]
[1731798980826,14.20811458,215.56,215.48,14.20811458]
[1731798981346,14.20811458,215.52,215.43,14.20811458]
[1731798981544,23.902374,215.51,215.43,14.20811458]
[1731798981856,23.776884,215.47,215.39,6.1794]
[1731798982041,23.776884,215.45,215.39,6.1794]
[1731798982233,0.12549,215.44,215.39,6.1794]
[1731798982429,0.12549,215.44,215.38,18.85091458]
[1731798982629,0.12549,215.44,215.4,14.20811458]
[1731798982837,14.20811458,215.48,215.4,14.20811458]
[1731798983042,27.6719,215.53,215.38,16.2501]
[1731798983043,23.902374,215.49,215.38,16.2501]
[1731798983250,23.902374,215.49,215.43,14.20811458]
[1731798983555,14.20811458,215.54,215.47,14.20811458]
[1731798983736,27.6696,215.58,215.49,14.20811458]
[1731798983737,14.20811458,215.56,215.49,14.20811458]
[1731798984067,30.28061458,215.58,215.51,14.20811458]
[1731798984256,30.28061458,215.58,215.49,14.20811458]
[1731798984761,14.20811458,215.56,215.47,14.20811458]
[1731798984966,14.20811458,215.54,215.45,14.20811458]
[1731798985256,23.902374,215.51,215.43,14.20811458]
[1731798985459,14.20811458,215.5,215.43,14.20811458]
[1731798985751,23.776884,215.51,215.43,14.20811458]
[1731798985934,0.12549,215.5,215.45,14.20811458]
[1731798986132,14.20811458,215.52,215.45,14.20811458]
[1731798986581,28.416984,215.51,215.45,14.20811458]
[1731798987044,28.416984,215.51,215.43,34.20811458]
[1731798987254,28.416984,215.51,215.45,14.20811458]
[1731798987451,28.416784,215.53,215.47,14.20811458]
[1731798987662,23.776884,215.53,215.49,14.20811458]
[1731798987868,23.776884,215.54,215.49,14.20811458]
[1731798988847,30.28061458,215.58,215.49,14.20811458]
[1731798989061,14.20811458,215.6,215.51,14.20811458]
[1731798989249,4.6383,215.6,215.53,14.20811458]
[1731798989437,14.20811458,215.62,215.55,14.20811458]
[1731798989640,4.6379,215.62,215.55,14.20811458]
[1731798989941,34.91811458,215.64,215.57,14.20811458]
[1731798990166,4.6375,215.64,215.59,14.20811458]
[1731798990372,14.20811458,215.66,215.61,14.20811458]
[1731798990373,4.6369,215.66,215.61,14.20811458]
[1731798990580,4.6369,215.66,215.59,14.20811458]
[1731798991257,4.6366,215.68,215.62,14.20811458]
[1731798992065,14.20811458,215.67,215.6,14.20811458]
[1731798992282,14.20811458,215.67,215.52,6.1794]
[1731798992283,14.20811458,215.65,215.58,14.20811458]
[1731798992468,14.20811458,215.61,215.54,14.20811458]
[1731798992780,14.20811458,215.61,215.52,6.1794]
[1731798992781,23.902374,215.6,215.52,20.38751458]
[1731798993156,23.902374,215.6,215.54,14.20811458]
[1731798994269,28.540774,215.6,215.54,14.20811458]
[1731798994778,28.540774,215.6,215.52,20.38751458]
[1731798995359,28.540774,215.6,215.52,14.20811458]
[1731798996164,23.776884,215.58,215.5,14.20811458]
[1731798996470,14.20811458,215.59,215.52,14.20811458]
[1731798996671,0.12549,215.58,215.52,14.20811458]
[1731798996881,4.6384,215.6,215.52,14.20811458]
[1731798997064,14.20811458,215.61,215.52,14.20811458]
[1731798997283,14.20811458,215.65,215.57,14.20811458]
[1731798997882,18.84531458,215.65,215.57,18.84691458]
[1731798998964,28.539774,215.64,215.57,30.44401458]
[1731799000383,28.539774,215.64,215.57,14.20811458]
[1731799002484,23.776884,215.59,215.52,14.20811458]
[1731799002662,4.6374,215.64,215.48,14.20811458]
[1731799002663,0.12549,215.55,215.48,14.20811458]
[1731799003791,0.12549,215.55,215.5,14.20811458]
[1731799005496,4.76479,215.55,215.48,14.20811458]
[1731799005705,14.20811458,215.53,215.46,14.20811458]
[1731799006199,0.12549,215.5,215.44,14.20811458]
[1731799006490,0.12549,215.51,215.44,14.20811458]
[1731799006790,23.776884,215.5,215.42,14.20811458]
[1731799006982,23.776884,215.48,215.42,14.20811458]
[1731799007184,0.12549,215.47,215.42,14.20811458]
[1731799007381,4.76659,215.47,215.42,14.20811458]
[1731799008688,4.76659,215.47,215.4,14.20811458]
[1731799011407,4.76659,215.47,215.42,14.20811458]
[1731799015089,14.20811458,215.52,215.44,14.20811458]
[1731799015289,28.542674,215.51,215.44,14.20811458]
[1731799015481,14.20811458,215.48,215.4,14.20811458]
[1731799015678,0.12549,215.47,215.4,14.20811458]
[1731799015898,23.902374,215.47,215.4,14.20811458]
[1731799016698,14.20811458,215.5,215.44,14.20811458]
[1731799016883,23.902374,215.49,215.42,14.20811458]
[1731799017276,23.776884,215.47,215.4,14.20811458]
[1731799017480,0.12549,215.46,215.4,14.20811458]
[1731799017690,23.776884,215.45,215.39,20.0]
[1731799018080,23.776884,215.45,215.38,14.20811458]
[1731799018401,0.12549,215.44,215.38,14.20811458]
[1731799018782,23.776884,215.42,215.38,14.20811458]
[1731799019687,4.6418,215.43,215.38,14.20811458]
[1731799019906,28.543974,215.45,215.4,14.20811458]
[1731799020606,16.529,215.46,215.42,14.20811458]
[1731799020921,6.1825,215.49,215.42,14.20811458]
[1731799020922,28.543074,215.49,215.42,14.20811458]
[1731799021397,0.12549,215.46,215.4,14.20811458]
[1731799021605,4.6407,215.49,215.42,14.20811458]
[1731799021791,0.12549,215.48,215.42,14.20811458]
[1731799022115,23.902374,215.48,215.42,14.20811458]
[1731799022706,4.641,215.47,215.42,14.20811458]
[1731799023402,4.641,215.47,215.41,4.6422]
[1731799024020,23.776884,215.46,215.4,14.20811458]
[1731799024223,14.20811458,215.44,215.38,11.6073]
[1731799024401,23.776884,215.43,215.38,11.6073]
[1731799025818,28.418784,215.43,215.38,11.6073]
[1731799026006,28.418784,215.43,215.36,18.85141458]
[1731799026522,23.776884,215.44,215.4,14.20811458]
[1731799026700,0.12549,215.43,215.4,14.20811458]
[1731799027598,4.6416,215.44,215.4,14.20811458]
[1731799027921,11.6012,215.5,215.31,22.1408]
[1731799027922,4.6405,215.49,215.42,14.20811458]
[1731799028622,20.39061458,215.54,215.46,14.20811458]
[1731799028991,14.20811458,215.53,215.45,14.20811458]
[1731799029196,14.20811458,215.56,215.48,14.20811458]
[1731799029696,14.20811458,215.56,215.5,14.20811458]
[1731799030218,16.1697,215.57,215.51,14.20811458]
[1731799030901,14.20811458,215.55,215.47,14.20811458]
[1731799031223,14.20811458,215.52,215.44,14.20811458]
[1731799031518,0.12549,215.5,215.44,14.20811458]
[1731799031825,0.12549,215.52,215.46,14.20811458]
[1731799032030,0.12549,215.52,215.44,14.20811458]
[1731799032031,23.902374,215.52,215.44,14.20811458]
[1731799032233,0.12549,215.49,215.42,14.20811458]
[1731799032524,0.12549,215.47,215.42,14.20811458]
[1731799033299,14.33360458,215.47,215.36,15.402]
[1731799033510,0.12549,215.45,215.41,14.20811458]
[1731799033723,0.12549,215.45,215.42,14.20811458]
[1731799034214,160.9,215.56,215.42,14.20811458]
[1731799034215,0.12549,215.48,215.42,14.20811458]
[1731799034417,0.12549,215.49,215.44,14.20811458]
[1731799035823,23.776884,215.46,215.4,14.20811458]
[1731799036026,0.12549,215.45,215.38,14.20811458]
[1731799036724,0.12549,215.45,215.4,14.20811458]
[1731799038821,14.20811458,215.42,215.31,15.402]
[1731799039018,14.20811458,215.4,215.32,14.20811458]
[1731799039223,0.12549,215.38,215.32,14.20811458]
[1731799039533,0.12549,215.38,215.34,14.20811458]
[1731799039711,0.12549,215.38,215.32,14.20811458]
[1731799044236,0.12549,215.38,215.34,14.20811458]
[1731799044432,14.20811458,215.44,215.36,14.20811458]
[1731799044646,14.20811458,215.46,215.38,14.20811458]
[1731799045926,23.902374,215.45,215.38,14.20811458]
[1731799046318,0.12549,215.4,215.35,20.0]
[1731799046512,14.20811458,215.45,215.38,14.20811458]
[1731799046734,23.902374,215.44,215.38,14.20811458]
[1731799047122,23.902374,215.44,215.36,14.20811458]
[1731799047736,14.20811458,215.43,215.36,14.20811458]
[1731799047935,23.902374,215.42,215.36,14.20811458]
[1731799048427,0.12549,215.42,215.36,14.20811458]
[1731799050133,0.12549,215.43,215.38,14.20811458]
[1731799050839,30.37781458,215.47,215.4,14.20811458]
[1731799051524,14.20811458,215.51,215.44,14.20811458]
[1731799052635,15.6828,215.53,215.48,14.20811458]
[1731799052945,15.6828,215.53,215.41,0.1]
[1731799052946,14.20811458,215.55,215.47,14.20811458]
[1731799053145,14.20811458,215.54,215.47,14.20811458]
[1731799053324,4.6397,215.53,215.47,14.20811458]
[1731799053925,0.12549,215.52,215.47,14.20811458]
[1731799055234,0.12549,215.52,215.47,18.84901458]
[1731799055434,0.12549,215.54,215.47,18.84901458]
[1731799055643,0.12549,215.54,215.47,30.45151458]
[1731799055941,0.12549,215.54,215.49,14.20811458]
[1731799056148,28.541374,215.57,215.49,14.20811458]
[1731799056752,4.639,215.57,215.49,14.20811458]
[1731799057542,4.639,215.57,215.5,4.6403]
[1731799057744,15.5612,215.58,215.53,14.20811458]
[1731799057932,0.12549,215.6,215.55,14.20811458]
[1731799058644,0.12549,215.6,215.56,14.20811458]
[1731799058853,0.12549,215.62,215.57,14.20811458]
[1731799059227,0.12549,215.62,215.55,14.20811458]
[1731799059545,4.76329,215.62,215.55,14.20811458]
[1731799060049,14.20811458,215.59,215.53,14.20811458]
[1731799060229,0.12549,215.56,215.49,14.20811458]
[1731799060432,23.776884,215.55,215.48,14.20811458]
[1731799060847,23.776884,215.53,215.46,14.20811458]
[1731799061050,14.20811458,215.56,215.48,14.20811458]
[1731799061347,23.776884,215.53,215.46,14.20811458]
[1731799061526,0.12549,215.52,215.46,14.20811458]
[1731799062350,14.33360458,215.52,215.45,11.6036]
[1731799062655,14.33360458,215.52,215.44,14.20811458]
[1731799062833,46.50893825,215.51,215.43,27.37375425]
[1731799063037,0.12549,215.5,215.43,22.73205425]
[1731799063550,0.12549,215.48,215.43,22.73205425]
[1731799064532,0.12549,215.47,215.41,22.73205425]
[1731799064736,22.73205425,215.45,215.37,22.73205425]
[1731799064959,22.85754425,215.44,215.36,22.73205425]
[1731799066142,22.73205425,215.42,215.35,11.6085]
[1731799066363,23.776884,215.43,215.28,0.1]
[1731799066364,23.902374,215.39,215.32,22.73205425]
[1731799066567,0.12549,215.37,215.3,34.34345425]
[1731799067656,23.776884,215.39,215.33,22.73205425]
[1731799067875,22.85754425,215.38,215.31,42.73205425]
[1731799068055,22.85754425,215.36,215.3,11.6114]
[1731799068966,0.12549,215.34,215.28,4.645]
[1731799069352,22.85754425,215.34,215.27,22.73205425]
[1731799069761,22.85754425,215.34,215.27,27.37725425]
[1731799070865,46.50893825,215.35,215.27,27.37725425]
[1731799071169,4.76929,215.34,215.27,22.73205425]
[1731799071358,28.546174,215.34,215.27,22.73205425]
[1731799071768,22.73205425,215.33,215.25,38.99185425]
[1731799071953,22.73205425,215.31,215.23,27.37815425]
[1731799072151,28.420684,215.34,215.23,27.37815425]
[1731799072152,22.85754425,215.3,215.23,4.6461]
[1731799072553,22.85754425,215.3,215.23,27.37815425]
[1731799073877,23.902374,215.3,215.23,27.37815425]
[1731799074251,23.902374,215.3,215.24,22.73205425]
[1731799074453,4.6441,215.33,215.27,22.73205425]
[1731799074662,23.776884,215.34,215.29,22.73205425]
[1731799074856,167.1777,215.38,215.27,22.73205425]
[1731799074857,46.50893825,215.35,215.27,22.73205425]
[1731799075171,22.73205425,215.34,215.26,22.73205425]
[1731799075552,6.2483,215.44,215.33,22.73205425]
[1731799075771,15.173,215.46,215.34,20.0]
[1731799075972,4.6414,215.45,215.37,22.73205425]
[1731799076184,22.73205425,215.42,215.31,20.0]
[1731799076475,4.6424,215.41,215.33,27.37585425]
[1731799076697,4.6424,215.41,215.35,22.73205425]
[1731799076976,0.12549,215.4,215.35,22.73205425]
[1731799077173,22.73205425,215.44,215.37,22.73205425]
[1731799077361,15.173,215.46,215.4,22.73205425]
[1731799077565,19.8143,215.46,215.41,22.73205425]
[1731799077763,15.173,215.46,215.41,22.73205425]
[1731799078268,15.173,215.46,215.4,22.73205425]
[1731799078476,19.8143,215.46,215.4,22.73205425]
[1731799079170,0.12549,215.45,215.38,22.73205425]
[1731799079368,0.12549,215.45,215.4,22.73205425]
[1731799081586,0.12549,215.45,215.37,20.0]
[1731799081796,0.12549,215.45,215.4,22.73205425]
[1731799082597,4.76689,215.45,215.38,22.73205425]
[1731799082801,0.12549,215.41,215.32,16.2548]
[1731799082969,0.12549,215.41,215.34,22.73205425]
[1731799083687,0.12549,215.41,215.36,22.73205425]
[1731799083890,28.418384,215.45,215.4,22.73205425]
[1731799084096,15.173,215.46,215.4,22.73205425]
[1731799084297,0.12549,215.45,215.42,22.73205425]
[1731799084794,4.641,215.47,215.42,22.73205425]
[1731799085003,10.889,215.49,215.42,22.73205425]
[1731799085991,33.62105425,215.49,215.42,22.73205425]
[1731799086198,27.37275425,215.49,215.42,22.73205425]
[1731799086374,39.22875425,215.51,215.42,4.6419]
[1731799086578,21.1369,215.51,215.44,22.73205425]
[1731799086775,16.4967,215.51,215.46,22.73205425]
[1731799086989,21.1369,215.51,215.44,22.73205425]
[1731799087175,22.73205425,215.49,215.4,4.6423]
[1731799087494,22.73205425,215.47,215.4,27.37435425]
[1731799087896,27.37315425,215.47,215.4,27.37435425]
[1731799088103,0.12549,215.44,215.38,4.6427]
[1731799088809,23.902374,215.44,215.37,22.73205425]
[1731799089103,22.73205425,215.43,215.36,22.73205425]
[1731799089496,0.12549,215.43,215.35,22.73205425]
[1731799089681,22.73205425,215.4,215.33,22.73205425]
[1731799089885,0.12549,215.39,215.33,22.73205425]